Workbook

Sheet Sheet1
A1: REBALANS PLANA PRORAČUNA ZA 2017. GODINU S PROJEKCIJOM - RADNI MATERIJAL
A4: Program | B4: Konto | C4: Pozicija | D4: NAZIV POZICIJE | E4: IZVRŠENJE 2012 | F4: IZVRŠENJE 2013 | G4: IZVRŠENJE 2014 | H4: IZVRŠENJE 2015 | I4: IZVRŠENJE 2016 | J4: IZVRŠENJE 2017 | K4: PLAN 2017 | L4: POVEĆANJE | M4: SMANJENJE | N4: NOVI PLAN 2017 | O4: PROJEKCIJA 2018 | P4: PROJEKCIJA 2018
A5: P. | D5: UKUPNO PRIHODI i PRIMICI | E5: =+E6+E8+E9+E10+E11+E12+E13+E14+E15+E16+E17+E18+E19+E20+E21+E22+E23+E24+E26+E27+E29+E30+E32+E33+E34+E35+E36+E38+E39+E40+E41+E42+E43+E44+E45+E46+E47+E48+E51+E52+E53+E58+E60+E61+E62+E63+E64+E65+E66+E68+E69+E71+E72+E74+E75+E76+E77+E78+E79+E80+E81+E82+E83+E84+E85+E86+E87+E88+E89+E90+E91+E93+E94+E96+E98+E99+E100+E101+E102+E103+E104+E106+E107+E108+E110+E112+E113+E115+E116+E118 -> 8506530.21 | F5: 8324109.29 | G5: 8379955.04 | H5: 9976074.56 | I5: 10375207.37 | J5: =+J6+J8+J9+J10+J11+J12+J13+J14+J15+J16+J17+J18+J19+J20+J21+J22+J23+J24+J26+J27+J29+J30+J32+J33+J34+J35+J36+J38+J39+J40+J41+J42+J43+J44+J45+J46+J47+J48+J51+J52+J53+J58+J60+J61+J62+J63+J64+J65+J66+J68+J69+J71+J72+J74+J75+J76+J77+J78+J79+J80+J81+J82+J83+J84+J85+J86+J87+J88+J89+J90+J91+J93+J94+J95+J96+J98+J99+J100+J101+J102+J103+J104+J106+J107+J108+J110+J112+J113+J115+J116+J118 -> 1862213.16 | K5: 11500000 | L5: 3480000 | M5: 1630000 | N5: 13350000 | O5: 11300000 | P5: 11500000
A6: P. | B6: 61341 | C6: 1783 | D6: Porez na promet nekretnina od 2017 | E6: 0 | F6: 0 | G6: 0 | H6: 0 | I6: 0 | J6: 33851.14 | K6: 0 | L6: 0 | M6: 0 | N6: =K6+L6-M6 -> 0 | O6: 0 | P6: 0
B7: 611 | D7: Porez i prirez na dohodak | E7: =+E8+E9+E10+E11+E12+E13+E14+E15+E16+E17+E18+E19+E20+E21+E22+E23+E24 -> 3005081.63 | F7: 2926932.68 | G7: 3161652.09 | H7: 2357330.87 | I7: 2531632.08 | J7: 398945.46 | K7: 2116400 | L7: 30000 | M7: 0 | N7: 2146400 | O7: 2121400 | P7: 2046400
A8: P. | B8: 61123 | C8: 1830 | D8: Preduj.por.i prir.na dr.doh.po osn.nakn.za ispor.umjet.djel | E8: 0 | F8: 9288.82 | G8: 1852.35 | H8: 0 | I8: 0 | J8: 0 | K8: 10000 | L8: 0 | M8: 0 | N8: 10000 | O8: 10000 | P8: 10000
A9: P. | B9: 61111 | C9: 1200 | D9: Prihodi za raspoređivanje | E9: 0 | F9: 0 | G9: 0 | H9: 0 | I9: 0 | J9: 125019.75 | K9: 0 | L9: 0 | M9: 0 | N9: 0 | O9: 0 | P9: 0
A10: P. | B10: 61111 | C10: 1406 | D10: Porez i prirez od nesamostalnog rada | E10: 2609419.38 | F10: 2374874.84 | G10: 2559900.68 | H10: 1695743.95 | I10: 1837838.43 | J10: 202764.13 | K10: 1747400 | L10: 0 | M10: 0 | N10: 1747400 | O10: 1747400 | P10: 1747400
A11: P. | B11: 61112 | C11: 1414 | D11: Porez i prirez na dohodak od nesamostalnog rada do propisan | E11: 0 | F11: 0 | G11: 0 | H11: 0 | I11: 0 | J11: 0 | K11: 1000 | L11: 0 | M11: 0 | N11: 1000 | O11: 1000 | P11: 1000
A12: P. | B12: 61145 | C12: 1422 | D12: Porez i prirez na dohodak od osiguranja života i dobrov.mir | E12: 626.52 | F12: 1346.69 | G12: 376.75 | H12: 6621.33 | I12: 7845.97 | J12: 866.58 | K12: 5000 | L12: 0 | M12: 0 | N12: 5000 | O12: 5000 | P12: 5000
A13: P. | B13: 61121 | C13: 1430 | D13: Porez i prirez na dohodak od nesamostalnog rada od obrta i | E13: 45521.03 | F13: 36673.74 | G13: 46152.81 | H13: 43314.24 | I13: 94370.76 | J13: 15139.41 | K13: 55000 | L13: 0 | M13: 0 | N13: 55000 | O13: 60000 | P13: 60000
A14: P. | B14: 61122 | C14: 1449 | D14: Predujam por.i pr.na doh.od obrta,slob.zanim.paušalno | E14: 332.66 | F14: 1602.78 | G14: 3085.91 | H14: 5983.08 | I14: 5744.79 | J14: 320.17 | K14: 3000 | L14: 0 | M14: 0 | N14: 3000 | O14: 3000 | P14: 3000
A15: P. | B15: 61112 | C15: 1457 | D15: Porez i prirez na dohodak od nesamostalnog rada od povremen | E15: 47269.37 | F15: 70653.7 | G15: 300541.59 | H15: 232329.47 | I15: 389081.89 | J15: 25921.43 | K15: 100000 | L15: 0 | M15: 0 | N15: 100000 | O15: 100000 | P15: 100000
A16: P. | B16: 61123 | C16: 1465 | D16: Porez i prirez na dohodak od drugih samostalni djelatnosti | E16: 3278.68 | F16: 7073.7 | G16: 498.96 | H16: 0 | I16: 0.01 | J16: 0 | K16: 5000 | L16: 0 | M16: 0 | N16: 5000 | O16: 5000 | P16: 5000
A17: P. | B17: 61131 | C17: 1503 | D17: Porez i prirez na dohodak od imovine i imovinskih prava | E17: 36652.29 | F17: 33053.27 | G17: 43981.69 | H17: 90177.16 | I17: 89814.63 | J17: 19065.25 | K17: 80000 | L17: 0 | M17: 0 | N17: 80000 | O17: 80000 | P17: 80000
A18: P. | B18: 61132 | C18: 1511 | D18: Prihodi od iznajmljivanja stanova, soba i postelja | E18: 2277.47 | F18: 1606.92 | G18: 2946.68 | H18: 3987.12 | I18: 2980.39 | J18: 261.36 | K18: 5000 | L18: 0 | M18: 0 | N18: 5000 | O18: 5000 | P18: 5000
A19: P. | B19: 61134 | C19: 1546 | D19: Predujam por.i prir.na doh.po odbitku od imov.prava | E19: 0 | F19: 1528.06 | G19: 0 | H19: 0 | I19: 0 | J19: 0 | K19: 2000 | L19: 0 | M19: 0 | N19: 2000 | O19: 2000 | P19: 2000
A20: P. | B20: 61141 | C20: 1570 | D20: Porez i prirez na dohodak od dividendi | E20: 95725.58 | F20: 243302.56 | G20: 73506.44 | H20: 248946.52 | I20: 71820.83 | J20: 203.67 | K20: 100000 | L20: 0 | M20: 0 | N20: 100000 | O20: 100000 | P20: 25000
A21: P. | B21: 61143 | C21: 1597 | D21: Preduj. Poreza i prireza po odbit. Na doh. od kamata | E21: 961.31 | F21: 967.84 | G21: 0 | H21: 0 | I21: 0 | J21: 0 | K21: 1000 | L21: 0 | M21: 0 | N21: 1000 | O21: 1000 | P21: 1000
A22: P. | B22: 61144 | C22: 1600 | D22: Porez i prirez na doh. od čl.uprave | E22: 0 | F22: 0 | G22: 0 | H22: 0 | I22: 0 | J22: 0 | K22: 1000 | L22: 0 | M22: 0 | N22: 1000 | O22: 1000 | P22: 1000
A23: P. | B23: 61151 | C23: 1619 | D23: Porez i prirez na dohodak po godišnjoj prijavi | E23: 163017.34 | F23: 144959.76 | G23: 128808.23 | H23: 30228 | I23: 32134.38 | J23: 9383.71 | K23: 0 | L23: 30000 | M23: 0 | N23: 30000 | O23: 0 | P23: 0 | Q23: Zašto nismo ranije stavili ?
A24: P. | B24: 61161 | C24: 1627 | D24: Porez i prirez utvrđen u postupku nadzora | E24: 0 | F24: 0 | G24: 0 | H24: 0 | I24: 0 | J24: 0 | K24: 1000 | L24: 0 | M24: 0 | N24: 1000 | O24: 1000 | P24: 1000
B25: 613 | D25: Porezi na imovinu | E25: =+E26+E27 -> 138349.96 | F25: 177220.51 | G25: 185705.87 | H25: 392647.22 | I25: 228890.36 | J25: 0 | K25: 201000 | L25: 0 | M25: 0 | N25: 201000 | O25: 201000 | P25: 201000
A26: P. | B26: 61342 | C26: 1635 | D26: Predujam p/p od otuđenja nekretnina i imov.prava | E26: 0 | F26: 0 | G26: 0 | H26: 3809.18 | I26: 217.8 | J26: 0 | K26: 1000 | L26: 0 | M26: 0 | N26: 1000 | O26: 1000 | P26: 1000
A27: P. | B27: 61341 | C27: 2848 | D27: Porez na promet nekretnina | E27: 138349.96 | F27: 177220.51 | G27: 185705.87 | H27: 388838.04 | I27: 228672.56 | J27: 0 | K27: 200000 | L27: 0 | M27: 0 | N27: 200000 | O27: 200000 | P27: 200000
B28: 614 | D28: Porezi na robu i usluge | E28: =+E29+E30 -> 40875.87 | F28: 43128.23 | G28: 47920.17 | H28: 32708.38 | I28: 44205.14 | J28: 5043.41 | K28: 50000 | L28: 0 | M28: 0 | N28: 50000 | O28: 50000 | P28: 50000
A29: P. | B29: 61424 | C29: 1708 | D29: Porez na potrošnju | E29: 18012.71 | F29: 22004.38 | G29: 20296.24 | H29: 16589.56 | I29: 24834.2 | J29: 3989.71 | K29: 25000 | L29: 0 | M29: 0 | N29: 25000 | O29: 25000 | P29: 25000
A30: P. | B30: 61453 | C30: 1732 | D30: Porez na tvrtku | E30: 22863.16 | F30: 21123.85 | G30: 27623.93 | H30: 16118.82 | I30: 19370.94 | J30: 1053.7 | K30: 25000 | L30: 0 | M30: 0 | N30: 25000 | O30: 25000 | P30: 25000
B31: 616 | D31: Ostali prihodi od poreza | E31: =+E32+E33+E34+E35+E36 -> 90439.99 | F31: 178529.12 | G31: 11144.54 | H31: 7131.36 | I31: 5914.41 | J31: 948.8 | K31: 81000 | L31: 0 | M31: 40000 | N31: 41000 | O31: 81000 | P31: 100000
A32: P. | B32: 61639 | C32: 1856 | D32: Pred. por./prir.na doh.od nes.rada po sud.pres.u ovrš.postu | E32: 0 | F32: 0 | G32: 542.75 | H32: 0 | I32: 0 | J32: 0 | K32: 2000 | L32: 0 | M32: 0 | N32: 2000 | O32: 2000 | P32: 2000
A33: P. | B33: 61639 | C33: 1872 | D33: Prih.napl.dug.por.i pr.na doh.plać.po rj.reprog | E33: 1871.42 | F33: 9558.37 | G33: 10156.29 | H33: 7131.36 | I33: 5914.41 | J33: 948.8 | K33: 6000 | L33: 0 | M33: 0 | N33: 6000 | O33: 6000 | P33: 15000
A34: P. | B34: 61639 | C34: 1805 | D34: Pred.poreza i prir.na doh.po osn.dobr.MIO | E34: 737.44 | F34: 742.68 | G34: 0 | H34: 0 | I34: 0 | J34: 0 | K34: 3000 | L34: 0 | M34: 0 | N34: 3000 | O34: 3000 | P34: 3000
A35: P. | B35: 61611 | C35: 1813 | D35: Pred. por. i prir. na doh. po osnovnoj djelatn. trg.putnika | E35: 87831.13 | F35: 151334.2 | G35: 445.5 | H35: 0 | I35: 0 | J35: 0 | K35: 50000 | L35: 0 | M35: 40000 | N35: 10000 | O35: 50000 | P35: 60000
A36: P. | B36: 61639 | C36: 1821 | D36: Pred. por. i prir. na doh. po osn.primitka u naravi | E36: 0 | F36: 16893.87 | G36: 0 | H36: 0 | I36: 0 | J36: 0 | K36: 20000 | L36: 0 | M36: 0 | N36: 20000 | O36: 20000 | P36: 20000
B37: 632 | D37: Pomoći od međunarodnih organizacija te institucija i tijela EU | E37: =+E38+E39+E40+E41+E42+E43+E44+E45+E46+E47+E48+E49 -> 0 | F37: =+F38+F39+F40+F41+F42+F43+F44+F45+F46+F47+F48+F49 -> 0 | G37: 0 | H37: 0 | I37: 0 | J37: =+J38+J39+J40+J41+J42+J43+J44+J45+J46+J47+J48 -> 0 | K37: 840000 | L37: 2200000 | M37: 650000 | N37: 2390000 | O37: 540000 | P37: 430000
A38: P. | B38: 63241 | C38: 7960-10 | D38: FZOEU - električni bicikli | E38: 0 | F38: 0 | G38: 0 | H38: 0 | I38: 0 | J38: 0 | K38: 10000 | L38: 0 | M38: 0 | N38: 10000 | O38: 10000 | P38: 10000 | Q38: Nema najave natječaja
A39: P. | B39: 63241 | C39: 7960-21 | D39: FZOEU - energetska obnova SLAK | E39: 0 | F39: 0 | G39: 0 | H39: 0 | I39: 0 | J39: 0 | K39: 300000 | L39: 0 | M39: 290000 | N39: 10000 | O39: 0 | P39: 0 | Q39: Nema najave natječaja
A40: P. | B40: 63241 | C40: 7960-22 | D40: FZOEU - energetska obnova MO Srijemske Laze | E40: 0 | F40: 0 | G40: 0 | H40: 0 | I40: 0 | J40: 0 | K40: 100000 | L40: 0 | M40: 90000 | N40: 10000 | O40: 0 | P40: 0 | Q40: Nema najave natječaja
A41: P. | B41: 63241 | C41: 7960-23 | D41: FZOEU - energetska obnova MO Novi Jankovci | E41: 0 | F41: 0 | G41: 0 | H41: 0 | I41: 0 | J41: 0 | K41: 100000 | L41: 0 | M41: 90000 | N41: 10000 | O41: 0 | P41: 0 | Q41: Nema najave natječaja
A42: P. | B42: 63241 | C42: 7960-24 | D42: FZOEU - energetska obnova Dom Sr. Laze | E42: 0 | F42: 0 | G42: 0 | H42: 0 | I42: 0 | J42: 0 | K42: 0 | L42: 0 | M42: 0 | N42: 0 | O42: 200000 | P42: 200000 | Q42: Nema najave natječaja
A43: P. | B43: 63241 | C43: 7960-25 | D43: FZOEU - energetska obnova svlačionica | E43: 0 | F43: 0 | G43: 0 | H43: 0 | I43: 0 | J43: 0 | K43: 0 | L43: 0 | M43: 0 | N43: 0 | O43: 200000 | P43: 100000 | Q43: Nema najave natječaja
A44: P. | B44: 63241 | C44: 7960-26 | D44: FZOEU - obnovljivi izvori energije | E44: 0 | F44: 0 | G44: 0 | H44: 0 | I44: 0 | J44: 0 | K44: 50000 | L44: 0 | M44: 40000 | N44: 10000 | O44: 50000 | P44: 40000 | Q44: Nema najave natječaja
A45: P. | B45: 63241 | C45: 7960-16 | D45: FZOEU - Energetski pregled i certif. zgrada | E45: 0 | F45: 0 | G45: 0 | H45: 0 | I45: 0 | J45: 0 | K45: 30000 | L45: 0 | M45: 20000 | N45: 10000 | O45: 30000 | P45: 30000 | Q45: Nema najave natječaja
A46: P. | B46: 63241 | C46: 7978-6 | D46: FZOEU - Javna rasvjeta | E46: 0 | F46: 0 | G46: 0 | H46: 0 | I46: 0 | J46: 0 | K46: 100000 | L46: 0 | M46: 90000 | N46: 10000 | O46: 0 | P46: 0 | Q46: Nema najave natječaja
A47: P. | B47: 63241 | C47: 7978-10 | D47: FZOEU - Reciklažno dvorište | E47: 0 | F47: 0 | G47: 0 | H47: 0 | I47: 0 | J47: 0 | K47: 100000 | L47: 1700000 | M47: 0 | N47: 1800000 | O47: 0 | P47: 0 | Q47: Raspisan natječaj
A48: P. | B48: 63241 | C48: 7978-19 | D48: FZOEU - primjena novih teh. proizvodnje bioplina | E48: 0 | F48: 0 | G48: 0 | H48: 0 | I48: 0 | J48: 0 | K48: 50000 | L48: 0 | M48: 30000 | N48: 20000 | O48: 50000 | P48: 50000
D49: Interreg - Poslovni kompetentni centar | E49: 0 | F49: 0 | G49: 0 | H49: 0 | I49: 0 | J49: 0 | K49: 0 | L49: 500000 | M49: 0 | N49: 500000 | O49: 0 | P49: 0
B50: 633 | D50: Pomoći proračunu iz drugih proračuna | E50: =+E51+E52+E53+E58 -> 169520.18 | F50: 251774.76 | G50: 507030.38 | H50: 2227500.29 | I50: 3394255 | J50: 562144.07 | K50: 2003000 | L50: 1650000 | M50: 100000 | N50: 3553000 | O50: 2005000 | P50: 2390000
A51: P. | B51: 63321 | C51: 7978-2 | D51: Kapitalne pomoći iz držav.prorač.-kanalizacija | E51: 0 | F51: 0 | G51: 0 | H51: 0 | I51: 0 | J51: 0 | K51: 13000 | L51: 0 | M51: 0 | N51: 13000 | O51: 15000 | P51: 50000
A52: P. | B52: 63311 | C52: 7960 | D52: Tekuće pomoći iz državnog proračuna | E52: 169520.18 | F52: 57198.57 | G52: 312677.73 | H52: 2185499 | I52: 2226484 | J52: 562144.07 | K52: 1750000 | L52: 0 | M52: 0 | N52: 1750000 | O52: 1750000 | P52: 2000000 | Q52: Kvartalna uplata
A53: P. | B53: 63321 | C53: 7978 | D53: Kapitalne pomoći iz držav. proračuna | E53: 0 | F53: 0 | G53: 0 | H53: 32676.29 | I53: 1137771 | J53: 0 | K53: 40000 | L53: =SUM(L54:L57) -> 1650000 | M53: =SUM(M54:M55) -> 0 | N53: 1690000 | O53: 40000 | P53: 40000
D54: MRRFEU - Program održivog razvoja | L54: 350000 | Q54: Javna rasvjeta
D55: Min. Graditeljstva - Razvoj kom. gosp. | L55: 300000 | Q55: Staze
D56: Mjera 7.2 Braće Radića Stari Jankovci | L56: 500000 | Q56: Čekamo rezultate
D57: Mjera 7.4 Dom kulture Novi Jankovci | L57: 500000 | Q57: Natječaj ide 18.04.2017.
A58: P. | B58: 63312 | C58: 7960-11 | D58: Tekuće pomoći iz županijskog proračuna | E58: 0 | F58: 194576.19 | G58: 194352.65 | H58: 9325 | I58: 30000 | J58: 0 | K58: 200000 | L58: 0 | M58: 100000 | N58: 100000 | O58: 200000 | P58: 300000
B59: 634 | D59: Pomoći od izvanproračunskih korisnika | E59: =+E60+E61+E62+E63+E64+E65+E66 -> 0 | F59: 0 | G59: 0 | H59: 863280 | I59: 323555.6 | J59: 0 | K59: 490000 | L59: 0 | M59: 110000 | N59: 380000 | O59: 400000 | P59: 400000
A60: P. | B60: 63414 | C60: 7960-121 | D60: Tekuće pomoći od HZZ-a (javni radovi) | E60: 0 | F60: 0 | G60: 0 | H60: 0 | I60: 298070.36 | J60: 0 | K60: 300000 | L60: 0 | M60: 0 | N60: 300000 | O60: 300000 | P60: 300000 | Q60: Prošlo 20 ljudi
A61: P. | B61: 63425 | C61: 7960-13 | D61: FZOEU - povećanje energetske učinkovitosti | E61: 0 | F61: 0 | G61: 0 | H61: 0 | I61: 0 | J61: 0 | K61: 10000 | L61: 0 | M61: 0 | N61: 10000 | O61: 10000 | P61: 10000 | Q61: Nema najave natječaja
A62: P. | B62: 63425 | C62: 7960-14 | D62: FZOEU - korištenje obnovljivih izvora energije -grijanje | E62: 0 | F62: 0 | G62: 0 | H62: 0 | I62: 0 | J62: 0 | K62: 10000 | L62: 0 | M62: 0 | N62: 10000 | O62: 10000 | P62: 10000 | Q62: Nema najave natječaja
A63: P. | B63: 63425 | C63: 7960-15 | D63: FZOEU - kante, kontejneri | E63: 0 | F63: 0 | G63: 0 | H63: 863280 | I63: 0 | J63: 0 | K63: 10000 | L63: 0 | M63: 0 | N63: 10000 | O63: 10000 | P63: 10000 | Q63: Nema najave natječaja
A64: P. | B64: 63414 | C64: 7960-81 | D64: Tekuće pomoći od HZZ-a (staž) | E64: 0 | F64: 0 | G64: 0 | H64: 0 | I64: 25485.24 | J64: 0 | K64: 50000 | L64: 0 | M64: 20000 | N64: 30000 | O64: 50000 | P64: 50000 | Q64: Prošlo 20 ljudi
A65: P. | B65: 63425 | C65: 7960-9 | D65: FZOEU - kamion - dogradnja | E65: 0 | F65: 0 | G65: 0 | H65: 0 | I65: 0 | J65: 0 | K65: 100000 | L65: 0 | M65: 90000 | N65: 10000 | O65: 10000 | P65: 10000 | Q65: Nema najave natječaja
A66: P. | B66: 63425 | C66: 7978-8 | D66: FZOEU - saniranje divljih odlagališta | E66: 0 | F66: 0 | G66: 0 | H66: 0 | I66: 0 | J66: 0 | K66: 10000 | L66: 0 | M66: 0 | N66: 10000 | O66: 10000 | P66: 10000 | Q66: Nema najave natječaja
B67: 636 | D67: Pomoći proračunskim korisnicima iz proračuna koji im nije nadležan | E67: =+E68+E69 -> 8800 | F67: 2160 | G67: 6400 | H67: 12220 | I67: 71205 | J67: 0 | K67: 60400 | L67: 0 | M67: 40000 | N67: 20400 | O67: 60400 | P67: 60400
A68: P. | B68: 63612 | C68: 7960-2 | D68: Tekuće potpore iz državnog i županijskog proračuna za sufin | E68: 8800 | F68: 2160 | G68: 6400 | H68: 12220 | I68: 71205 | J68: 0 | K68: 10400 | L68: 0 | M68: 0 | N68: 10400 | O68: 10400 | P68: 10400
A69: P. | B69: 63613 | C69: 7960-62 | D69: Tekuće potpore iz proračuna Općine Bogdanovci | E69: 0 | F69: 0 | G69: 0 | H69: 0 | I69: 0 | J69: 0 | K69: 50000 | L69: 0 | M69: 40000 | N69: 10000 | O69: 50000 | P69: 50000
B70: 641 | D70: Prihodi od financijske imovine | E70: =+E71+E72 -> 2332.9 | F70: 2145.57 | G70: 2010.35 | H70: 1414.5 | I70: 3161.55 | J70: 0 | K70: 5200 | L70: 0 | M70: 0 | N70: 5200 | O70: 5200 | P70: 5200
A71: P. | B71: 64132 | C71: 7790 | D71: Prihodi od kamata | E71: 2332.9 | F71: 2145.57 | G71: 2010.35 | H71: 1414.5 | I71: 3161.55 | J71: 0 | K71: 5000 | L71: 0 | M71: 0 | N71: 5000 | O71: 5000 | P71: 5000
A72: P. | B72: 64132 | C72: 7790-6 | D72: Prihodi od kamata-DV Krijesnica | E72: 0 | F72: 0 | G72: 0 | H72: 0 | I72: 0 | J72: 0 | K72: 200 | L72: 0 | M72: 0 | N72: 200 | O72: 200 | P72: 200
B73: 642 | D73: Prihodi od nefinancijske imovine | E73: =+E74+E75+E76+E77+E78+E79+E80+E81+E82+E83+E84+E85+E86+E87+E88+E89+E90+E91 -> 3111121.87 | F73: 3262743.42 | G73: 3252543.9 | H73: 3092670.1 | I73: 2180551.1 | J73: 643584.92 | K73: 3700000 | L73: 100000 | M73: 500000 | N73: 3300000 | O73: 3800000 | P73: 3700000
A74: P. | B74: 64299 | C74: 7811 | D74: Prihod s osnova posebnog ugovora | E74: 700 | F74: 10500 | G74: 0 | H74: 0 | I74: 700 | J74: 0 | K74: 10000 | L74: 0 | M74: 0 | N74: 10000 | O74: 10000 | P74: 10000
A75: P. | B75: 64239 | C75: 7706 | D75: Ostali općinski prihodi i usluge komunalne djelatnosti-grob | E75: 66352 | F75: 40120 | G75: 15300 | H75: 14100 | I75: 47050 | J75: 5350 | K75: 20000 | L75: 0 | M75: 0 | N75: =K75+L75-M75 -> 20000 | O75: 20000 | P75: 20000
A76: P. | B76: 64239 | C76: 7722 | D76: Prihodi od nepokretni i pokretni stvari u vlasništvu općine | E76: 0 | F76: 8774.2 | G76: 10200 | H76: 10307.1 | I76: 10764.2 | J76: 4000 | K76: 10000 | L76: 0 | M76: 0 | N76: 10000 | O76: 10000 | P76: 10000
A77: P. | B77: 64236 | C77: 2869 | D77: Prihod od spom.rente-po četv.metru. | E77: 0 | F77: 0 | G77: 0 | H77: 0 | I77: 0 | J77: 0 | K77: 1000 | L77: 0 | M77: 0 | N77: 1000 | O77: 1000 | P77: 1000
A78: P. | B78: 64236 | C78: 2870 | D78: Prihod od spom.rente-na uk.prih. | E78: 759.96 | F78: 310.65 | G78: 0 | H78: 69.79 | I78: 70.03 | J78: 1.18 | K78: 1000 | L78: 0 | M78: 0 | N78: 1000 | O78: 1000 | P78: 1000
A79: P. | B79: 64213 | C79: 2895 | D79: Naknada za koncesije za zahvaćanje vode | E79: 8039.34 | F79: 786.32 | G79: 6069.42 | H79: 0 | I79: 1650 | J79: 0 | K79: 5000 | L79: 0 | M79: 0 | N79: 5000 | O79: 5000 | P79: 5000
A80: P. | B80: 64239 | C80: 2902 | D80: Nak.za prom.namj.polj.zemlji.u građevinsko | E80: 0 | F80: 0 | G80: 5.64 | H80: 85.58 | I80: 79.24 | J80: 0 | K80: 1000 | L80: 0 | M80: 0 | N80: 1000 | O80: 1000 | P80: 1000
A81: P. | B81: 64231 | C81: 2948 | D81: Naknada za istraživanje mineralnih sirovina -nafta | E81: 9016 | F81: 4296.8 | G81: 0 | H81: 0 | I81: 0 | J81: 0 | K81: 1000 | L81: 0 | M81: 0 | N81: 1000 | O81: 1000 | P81: 1000
A82: P. | B82: 64231 | C82: 2950 | D82: Nakn.za pridob.kol.en.min.sir.plin | E82: 119992.9 | F82: 126221.13 | G82: 119627.73 | H82: 98215.52 | I82: 78989.81 | J82: 15931.66 | K82: 120000 | L82: 0 | M82: 0 | N82: 120000 | O82: 120000 | P82: 120000
A83: P. | B83: 64231 | C83: 2953 | D83: Nakn.za pridob.kol.en.min.sir.naft.kond. | E83: 2689032.5 | F83: 2801589.88 | G83: 2771281.93 | H83: 2552645.66 | I83: 1751699.9 | J83: 531231.9 | K83: 3100000 | L83: 0 | M83: 500000 | N83: 2600000 | O83: 3200000 | P83: 3100000 | Q83: Umanjeno, poslana Inicijativa za povećanjem sa 10 na 12%
A84: P. | B84: 64299 | C84: 2963 | D84: Nak.za zadrž.nezakon.izgr.zgrade u prostoru | E84: 7940.9 | F84: 17701.79 | G84: 60377.94 | H84: 57086.15 | I84: 62388.38 | J84: 6227.28 | K84: 60000 | L84: 0 | M84: 0 | N84: 60000 | O84: 60000 | P84: 60000
A85: P. | B85: 64219 | C85: 5819 | D85: Naknada za koncesije | E85: 78943.51 | F85: 84479.45 | G85: 65161.77 | H85: 108988.68 | I85: 106746.52 | J85: 0 | K85: 100000 | L85: 0 | M85: 0 | N85: 100000 | O85: 100000 | P85: 100000
A86: P. | B86: 64231 | C86: 5827 | D86: Naknada za eksploataciju mineralnih sirovina -nafta | E86: 26460 | F86: 26460 | G86: 78745.99 | H86: 84413.26 | I86: 0 | J86: 77174 | K86: 20000 | L86: 100000 | M86: 0 | N86: 120000 | O86: 20000 | P86: 20000
A87: P. | B87: 64225 | C87: 5835 | D87: Najamnine-Stanarine i naknade etažnih vlasnika | E87: 13750 | F87: 7000 | G87: 13950 | H87: 8448.1 | I87: 8945.3 | J87: 3668.9 | K87: 15000 | L87: 0 | M87: 0 | N87: 15000 | O87: 15000 | P87: 15000
A88: P. | B88: 64229 | C88: 5738 | D88: Naknade za uporabu javnih grad./opć.površina (terase i plac | E88: 13174 | F88: 5128.59 | G88: 8330.11 | H88: 12070 | I88: 1727 | J88: 0 | K88: 10000 | L88: 0 | M88: 0 | N88: 10000 | O88: 10000 | P88: 10000
A89: P. | B89: 64212 | C89: 5738-1 | D89: Naknade za koncesiju T COM pravo služnosti | E89: 0 | F89: 0 | G89: 0 | H89: 0 | I89: 0 | J89: 0 | K89: 75000 | L89: 0 | M89: 0 | N89: 75000 | O89: 75000 | P89: 75000 | Q89: Treba poslati račun
A90: P. | B90: 64231 | C90: 6212 | D90: Naknada za korištenje mineralnih sirovina -nafta | E90: 0 | F90: 0 | G90: 0 | H90: 0 | I90: 0 | J90: 0 | K90: 1000 | L90: 0 | M90: 0 | N90: 1000 | O90: 1000 | P90: 1000
A91: P. | B91: 64222 | C91: 6441 | D91: Prihodi od zakupa poljoprivrednog zemljišta | E91: 76960.76 | F91: 129374.61 | G91: 103493.37 | H91: 146240.26 | I91: 109740.72 | J91: 0 | K91: 150000 | L91: 0 | M91: 0 | N91: 150000 | O91: 150000 | P91: 150000
B92: 651 | D92: Upravne i administrativne pristojbe | E92: =+E93+E94+E95+E96 -> 38188.14 | F92: =+F93+F94+F95+F96 -> 87038.2 | G92: 74753.2 | H92: 92600.6 | I92: 428048.85 | J92: =+J93+J94+J95+J96 -> 10554.9 | K92: 102000 | L92: 10000 | M92: 0 | N92: 112000 | O92: 102000 | P92: 110000
A93: P. | B93: 65139 | C93: 3086 | D93: Prihod ostv. od prodaje drž. biljega | E93: 245.34 | F93: 0 | G93: 0 | H93: 0 | I93: 0 | J93: 0 | K93: 1000 | L93: 0 | M93: 0 | N93: 1000 | O93: 1000 | P93: 5000
A94: P. | B94: 65149 | C94: 7242 | D94: Jamčevina, natječajna dokum. | E94: 0 | F94: 0 | G94: 0 | H94: 0 | I94: 0 | J94: 0 | K94: 1000 | L94: 0 | M94: 0 | N94: 1000 | O94: 1000 | P94: 5000
B95: 65129 | C95: 5711 | D95: Općinske pristojbe - naknada za grobno mjesto | E95: 0 | F95: 0 | G95: 0 | H95: 0 | I95: 0 | J95: 6000 | K95: 0 | L95: 10000 | M95: 0 | N95: 10000 | O95: 0 | P95: 0 | Q95: - ubačena pozicija
A96: P. | B96: 65129 | C96: 5789 | D96: Ostale naknade utvrđene općinskim odlukama i grobna naknada | E96: 37942.8 | F96: 87038.2 | G96: 74753.2 | H96: 92600.6 | I96: 428048.85 | J96: 4554.9 | K96: 100000 | L96: 0 | M96: 0 | N96: 100000 | O96: 100000 | P96: 100000
B97: 652 | D97: Prihodi po posebnim propisima | E97: =+E98+E99+E100+E101+E102+E103+E104 -> 1353814.86 | F97: 536252.27 | G97: 272910.45 | H97: 108230.37 | I97: 305763.75 | J97: 6059.76 | K97: 404000 | L97: 0 | M97: 190000 | N97: 214000 | O97: 404000 | P97: 450000
A98: P. | B98: 65241 | C98: 7714 | D98: Šumski doprinos | E98: 910820.48 | F98: 45005.72 | G98: 45485.94 | H98: 17278.95 | I98: 17475.76 | J98: 5410.78 | K98: 80000 | L98: 0 | M98: 0 | N98: 80000 | O98: 80000 | P98: 120000
A99: P. | B99: 65269 | C99: 7781 | D99: Povrati u općinski proračun | E99: 0 | F99: 460.61 | G99: 0.44 | H99: 0 | I99: 2712.94 | J99: 0 | K99: 1000 | L99: 0 | M99: 0 | N99: 1000 | O99: 1000 | P99: 1000
A100: P. | B100: 65264 | C100: 6000 | D100: Prihodi od uplata roditelja - vrtić | E100: 0 | F100: 0 | G100: 0 | H100: 0 | I100: 0 | J100: 0 | K100: 200000 | L100: 0 | M100: 190000 | N100: 10000 | O100: 200000 | P100: 200000
A101: P. | B101: 65268 | C101: 7960-7 | D101: Tekuće donacije iz drž.prorač.za nac.manjine | E101: 7400 | F101: 7400 | G101: 4400 | H101: 0 | I101: 0 | J101: 0 | K101: 8000 | L101: 0 | M101: 0 | N101: 8000 | O101: 8000 | P101: 14000
A102: P. | B102: 65264 | C102: 7960-4 | D102: Tekuće potpore od županije-za drva | E102: 34200 | F102: 91200 | G102: 88310 | H102: 87870 | I102: 282850 | J102: 0 | K102: 100000 | L102: 0 | M102: 0 | N102: 100000 | O102: 100000 | P102: 100000 | Q102: Ide u 10. mjesecu
A103: P. | B103: 65264 | C103: 7960-6 | D103: Tekuće potpore od države za program POMOĆI U KUĆI | E103: 400200 | F103: 391500 | G103: 127600 | H103: 0 | I103: 0 | J103: 0 | K103: 10000 | L103: 0 | M103: 0 | N103: 10000 | O103: 10000 | P103: 10000
A104: P. | B104: 65221 | C104: 7994 | D104: Vodni doprinos i ostali pr.za posebne namjene | E104: 1194.38 | F104: 685.94 | G104: 7114.07 | H104: 3081.42 | I104: 2725.05 | J104: 648.98 | K104: 5000 | L104: 0 | M104: 0 | N104: 5000 | O104: 5000 | P104: 5000
B105: 653 | D105: Komunalni doprinosi i naknade | E105: =+E106+E107+E108 -> 438951.05 | F105: 653837.99 | G105: 646361.95 | H105: 511116.16 | I105: 710073.07 | J105: 148069.85 | K105: 560000 | L105: 0 | M105: 0 | N105: 560000 | O105: 650000 | P105: 650000
A106: P. | B106: 65321 | C106: 5770 | D106: Prihod od komunalne naknade | E106: 377059.58 | F106: 491450.61 | G106: 423888.33 | H106: 418735.68 | I106: 486392.43 | J106: 110576.73 | K106: 450000 | L106: 0 | M106: 0 | N106: 450000 | O106: 450000 | P106: 450000
A107: P. | B107: 65311 | C107: 5720 | D107: Komunalni doprinosi i druge naknade utvrđene posebnim zakon | E107: 47286.98 | F107: 154120.27 | G107: 216838.5 | H107: 85866.26 | I107: 218231.13 | J107: 33051.59 | K107: 100000 | L107: 0 | M107: 0 | N107: 100000 | O107: 100000 | P107: 100000
A108: P. | B108: 653312 | C108: 7900-2 | D108: Priključak na plinsku mrežu | E108: 14604.49 | F108: 8267.11 | G108: 5635.12 | H108: 6514.22 | I108: 5449.51 | J108: 4441.53 | K108: 10000 | L108: 0 | M108: 0 | N108: 10000 | O108: 100000 | P108: 100000
B109: 681 | D109: Kazne i upravne mjere | E109: =+E110 -> 7655.29 | F109: 12478.08 | G109: 10331.7 | H109: 570.77 | I109: 144 | J109: 0 | K109: 10000 | L109: 0 | M109: 0 | N109: 10000 | O109: 10000 | P109: 10000
A110: P. | B110: 68181 | C110: 6700 | D110: Općinske novčane kazne - ovrha | E110: 7655.29 | F110: 12478.08 | G110: 10331.7 | H110: 570.77 | I110: 144 | J110: 0 | K110: 10000 | L110: 0 | M110: 0 | N110: 10000 | O110: 10000 | P110: 10000
B111: 683 | D111: Ostali prihodi | E111: =+E112+E113 -> 0 | F111: 0 | G111: 0 | H111: 0 | I111: 0 | J111: 0 | K111: 7000 | L111: 0 | M111: 0 | N111: 7000 | O111: 7000 | P111: 7000
A112: P. | B112: 68311 | C112: 7935 | D112: Prih.od napl.općinskih prih.plać.po nagodbi s dužnicima | E112: 0 | F112: 0 | G112: 0 | H112: 0 | I112: 0 | J112: 0 | K112: 5000 | L112: 0 | M112: 0 | N112: 5000 | O112: 5000 | P112: 5000
A113: P. | B113: 68311 | C113: 6001 | D113: Ostali nespomenuti prihodi - vrtić | E113: 0 | F113: 0 | G113: 0 | H113: 0 | I113: 0 | J113: 0 | K113: 2000 | L113: 0 | M113: 0 | N113: 2000 | O113: 2000 | P113: 2000
B114: 711 | D114: Prihodi od prodaje materijalne imovine - prirodnih bogatstava | E114: =+E115+E116 -> 101398.47 | F114: 189868.46 | G114: 201190.44 | H114: 276653.94 | I114: 147807.46 | J114: 53010.85 | K114: 230000 | L114: 0 | M114: 0 | N114: 230000 | O114: 223000 | P114: 250000
A115: P. | B115: 71111 | C115: 6457 | D115: Prihodi od prodaje poljoprivred.zemljišta vlasništvo države | E115: 94398.47 | F115: 189868.46 | G115: 198190.44 | H115: 260753.94 | I115: 136807.46 | J115: 49010.85 | K115: 200000 | L115: 0 | M115: 0 | N115: 200000 | O115: 200000 | P115: 200000
A116: P. | B116: 71111 | C116: 7757 | D116: Prihodi od prodaje nepokretnih i pokretnih stvari | E116: 7000 | F116: 0 | G116: 3000 | H116: 15900 | I116: 11000 | J116: 4000 | K116: 30000 | L116: 0 | M116: 0 | N116: 30000 | O116: 23000 | P116: 50000
B117: 922 | D117: Višak/manjak prihoda | E117: =+E118 -> 0 | F117: 0 | G117: 0 | H117: 0 | I117: 0 | J117: 0 | K117: 640000 | L117: 0 | M117: 0 | N117: 640000 | O117: 640000 | P117: 640000
A118: P. | B118: 92211 | C118: 9221 | D118: Višak prihoda poslovanja | E118: 0 | F118: 0 | G118: 0 | H118: 0 | I118: 0 | J118: 0 | K118: 640000 | L118: 0 | M118: 0 | N118: 640000 | O118: 640000 | P118: 640000
A119: R. | D119: UKUPNO RASHODI I IZDACI | E119: =+E123+E125+E126+E127+E129+E130+E131+E133+E134+E135+E136+E137+E138+E139+E141+E142+E143+E144+E145+E146+E148+E149+E150+E151+E152+E153+E154+E155+E156+E157+E158+E159+E160+E161+E162+E163+E164+E165+E166+E168+E169+E171+E172+E173+E174+E175+E176+E177+E178+E179+E180+E181+E182+E184+E186+E187+E190+E191+E195+E197+E200+E202+E203+E204+E205+E208+E209+E210+E211+E212+E213+E214+E217+E218+E219+E221+E227+E230+E231+E232+E234+E235+E236+E237+E239+E243+E244+E245+E246+E249+E251+E252+E256+E257+E261+E262+E264+E273+E274+E275+E276+E277+E280+E281+E282+E284+E286+E289+E292+E293+E294+E295+E296+E297+E298+E301+E304+E307+E311+E313+E314+E316+E318+E321+E322+E323+E324+E328+E329+E330+E333+E334+E336+E337+E339+E342+E344+E345+E346+E347+E349+E350+E351+E353+E355+E356+E359+E360+E361+E362+E363+E364+E365+E366+E367+E368+E369+E370+E372+E374+E376+E377+E379+E381+E384+E386+E388+E389+E392+E395+E398+E402+E403+E404+E405+E408+E409+E410+E411+E412+E413+E416+E418+E422+E426+E430+E432+E433+E435+E436+E438+E439+E440+E441+E442+E444+E445+E446+E447+E448+E449+E450+E451+E452+E453+E454+E455+E457+E458+E459+E460+E461+E462+E463+E464+E465+E466+E467+E468+E470+E471+E472+E473+E474+E476+E478+E481+E484+E485+E486+E489+E491+E492+E493 -> 8170316.4 | F119: 7007088.23 | G119: 7411156.29 | H119: 8106994.99 | I119: 9329497.88 | J119: 1969126.5 | K119: 11500000 | L119: 2333000 | M119: 484000 | N119: 13349000 | O119: 11300000 | P119: 11500000
A120: R.1. | D120: GLAVA 1 JEDINSTVENI UPRAVNI ODJEL | E120: =+E123+E125+E126+E127+E129+E130+E131+E133+E134+E135+E136+E137+E138+E139+E141+E142+E143+E144+E145+E146+E148+E149+E150+E151+E152+E153+E154+E155+E156+E157+E158+E159+E160+E161+E162+E163+E164+E165+E166+E168+E169+E171+E172+E173+E174+E175+E176+E177+E178+E179+E180+E181+E182+E184+E186+E187+E190+E191+E195+E197+E200+E202+E203+E204+E205+E208+E209+E210+E211+E212+E213+E214+E217+E218+E219+E221+E227+E230+E231+E232+E234+E235+E236+E237+E239 -> 3546624.56 | F120: 2732058.33 | G120: 3826897.31 | H120: 3749309.2 | I120: 1840479.74 | J120: =+J123+J125+J126+J127+J129+J130+J131+J133+J134+J135+J136+J137+J138+J139+J141+J142+J143+J144+J145+J146+J148+J149+J150+J151+J152+J153+J154+J155+J156+J157+J158+J159+J160+J161+J162+J163+J164+J165+J166+J168+J169+J171+J172+J173+J174+J175+J176+J177+J178+J179+J180+J181+J182+J184+J186+J187+J190+J191+J195+J197+J200+J202+J203+J204+J205+J208+J209+J210+J211+J212+J213+J214+J217+J218+J219+J221+J227+J230+J231+J232+J234+J235+J236+J237+J239 -> 468067.42 | K120: 3477400 | L120: 1853000 | M120: 154000 | N120: 5176400 | O120: 3080900 | P120: 3764400
A121: R.1.1. | D121: Program: Tekući programi | E121: =+E123+E125+E126+E127+E129+E130+E131+E133+E134+E135+E136+E137+E138+E139+E141+E142+E143+E144+E145+E146+E148+E149+E150+E151+E152+E153+E154+E155+E156+E157+E158+E159+E160+E161+E162+E163+E164+E165+E166+E168+E169+E171+E172+E173+E174+E175+E176+E177+E178+E179+E180+E181+E182+E184+E186+E187+E190+E191 -> 2537131.09 | F121: 1561012.31 | G121: 1212187.44 | H121: 1460429.93 | I121: 1297730.85 | J121: =+J123+J125+J126+J127+J129+J130+J131+J133+J134+J135+J136+J137+J138+J139+J141+J142+J143+J144+J145+J146+J148+J149+J150+J151+J152+J153+J154+J155+J156+J157+J158+J159+J160+J161+J162+J163+J164+J165+J166+J168+J169+J171+J172+J173+J174+J175+J176+J177+J178+J179+J180+J181+J182+J184+J186+J187+J190+J191 -> 227308.14 | K121: 1470500 | L121: 98000 | M121: 90000 | N121: 1478500 | O121: 1466000 | P121: 1469000
B122: 311 | D122: Plaće (Bruto) | E122: =+E123 -> 662252.2 | F122: 805374.64 | G122: 551135.84 | H122: 596201.56 | I122: 549506.88 | J122: 93049.94 | K122: 600000 | L122: 0 | M122: 0 | N122: 600000 | O122: 600000 | P122: 600000
A123: R.1.1. | B123: 31111 | C123: 1 | D123: Plaće | E123: 662252.2 | F123: 805374.64 | G123: 551135.84 | H123: 596201.56 | I123: 549506.88 | J123: 93049.94 | K123: 600000 | L123: 0 | M123: 0 | N123: 600000 | O123: 600000 | P123: 600000
B124: 312 | D124: Ostali rashodi za zaposlene | E124: =+E125+E126+E127 -> 0 | F124: 0 | G124: 0 | H124: 0 | I124: 16650 | J124: 0 | K124: 23000 | L124: 0 | M124: 0 | N124: 23000 | O124: 23000 | P124: 23000
A125: R.1.1. | B125: 31213 | C125: 52 | D125: Prigodne nagrade (regres, božićnica) | E125: 0 | F125: 0 | G125: 0 | H125: 0 | I125: 11250 | J125: 0 | K125: 12000 | L125: 0 | M125: 0 | N125: 12000 | O125: 12000 | P125: 12000
A126: R.1.1. | B126: 31213 | C126: 53 | D126: Darovi- za djecu | E126: 0 | F126: 0 | G126: 0 | H126: 0 | I126: 2400 | J126: 0 | K126: 7000 | L126: 0 | M126: 0 | N126: 7000 | O126: 7000 | P126: 7000
A127: R.1.1. | B127: 31215 | C127: 54 | D127: Naknada za bolest,inval.i smrtni slučaj | E127: 0 | F127: 0 | G127: 0 | H127: 0 | I127: 3000 | J127: 0 | K127: 4000 | L127: 0 | M127: 0 | N127: 4000 | O127: 4000 | P127: 4000
B128: 313 | D128: Doprinosi na plaće | E128: =+E129+E130+E131 -> 101017.45 | F128: 117584.77 | G128: 87728.71 | H128: 99518.87 | I128: 94515.19 | J128: 16004.56 | K128: 100000 | L128: 80000 | M128: 80000 | N128: 100000 | O128: 100000 | P128: 100000
A129: R.1.1. | B129: 31322 | C129: 51 | D129: Doprinosi za obvezno zdravstv.osig.zaštite zdravlja na radu | E129: 0 | F129: 0 | G129: 0 | H129: 0 | I129: 85173.52 | J129: 14422.7 | K129: 5000 | L129: 80000 | M129: 0 | N129: 85000 | O129: 5000 | P129: 5000 | Q129: Prebacivanje pozicije
A130: R.1.1. | B130: 31321 | C130: 3 | D130: Doprinosi za obvezno zdravstveno osiguranje | E130: 90421.41 | F130: 104698.8 | G130: 78910.46 | H130: 89430.22 | I130: 0 | J130: 0 | K130: 85000 | L130: 0 | M130: 80000 | N130: 5000 | O130: 85000 | P130: 85000 | Q130: Prebacivanje pozicije
A131: R.1.1. | B131: 31332 | C131: 4 | D131: Doprinosi za zapošljavanje | E131: 10596.04 | F131: 12885.97 | G131: 8818.25 | H131: 10088.65 | I131: 9341.67 | J131: 1581.86 | K131: 10000 | L131: 0 | M131: 0 | N131: 10000 | O131: 10000 | P131: 10000
B132: 321 | D132: Naknade troškova zaposlenima | E132: =+E133+E134+E135+E136+E137+E138+E139 -> 37191.88 | F132: 47907.2 | G132: 38027.92 | H132: 46924.07 | I132: 42507.54 | J132: 9286.74 | K132: 56000 | L132: 0 | M132: 0 | N132: 56000 | O132: 56000 | P132: 56000
A133: R.1.1. | B133: 32111 | C133: 5 | D133: Dnevnice za službeni put u zemlji | E133: 5270 | F133: 6290 | G133: 2805 | H133: 3145 | I133: 1955 | J133: 1020 | K133: 5000 | L133: 0 | M133: 0 | N133: 5000 | O133: 5000 | P133: 5000
A134: R.1.1. | B134: 32112 | C134: 5-1 | D134: Dnevnice za službeni put u inozemstvo | E134: 0 | F134: 4925.16 | G134: 1037.08 | H134: 1744 | I134: 4730.67 | J134: 0 | K134: 5000 | L134: 0 | M134: 0 | N134: 5000 | O134: 5000 | P134: 5000
A135: R.1.1. | B135: 32121 | C135: 2 | D135: Ostali rashodi za zaposlene | E135: 14120 | F135: 15530 | G135: 14285 | H135: 16000 | I135: 15300 | J135: 2330 | K135: 17000 | L135: 0 | M135: 0 | N135: 17000 | O135: 17000 | P135: 17000
A136: R.1.1. | B136: 32113 | C136: 6 | D136: Naknade za smještaj na službenom putu u zemlji | E136: 0 | F136: 0 | G136: 0 | H136: 2231.09 | I136: 0 | J136: 0 | K136: 5000 | L136: 0 | M136: 0 | N136: 5000 | O136: 5000 | P136: 5000
A137: R.1.1. | B137: 32115 | C137: 7 | D137: Naknade za prijevoz na službenom putu u zemlji | E137: 2155.2 | F137: 4472 | G137: 2229.8 | H137: 4374.1 | I137: 2108.48 | J137: 660.4 | K137: 5000 | L137: 0 | M137: 0 | N137: 5000 | O137: 5000 | P137: 5000
A138: R.1.1. | B138: 32141 | C138: 8 | D138: Korištenje privatnog autom.za sl.svrhe | E138: 976 | F138: 0 | G138: 848 | H138: 868.17 | I138: 923.35 | J138: 0 | K138: 3000 | L138: 0 | M138: 0 | N138: 3000 | O138: 3000 | P138: 3000
A139: R.1.1. | B139: 32121 | C139: 9 | D139: Naknada za prijevoz | E139: 14670.68 | F139: 16690.04 | G139: 16823.04 | H139: 18561.71 | I139: 17490.04 | J139: 5276.34 | K139: 16000 | L139: 0 | M139: 0 | N139: 16000 | O139: 16000 | P139: 16000
B140: 322 | D140: Rashodi za materijal i energiju | E140: =+E141+E142+E143+E144+E145+E146 -> 68981.46 | F140: 85788.08 | G140: 90463.53 | H140: 111488.64 | I140: 92465.95 | J140: 18285.14 | K140: 91000 | L140: 0 | M140: 0 | N140: 91000 | O140: 91000 | P140: 91000
A141: R.1.1. | B141: 32211 | C141: 10 | D141: Uredski materijal | E141: 17739.03 | F141: 21128.71 | G141: 23203.81 | H141: 26470.48 | I141: 26702.43 | J141: 4548.34 | K141: 25000 | L141: 0 | M141: 0 | N141: =K141+L141-M141 -> 25000 | O141: 25000 | P141: 25000
A142: R.1.1. | B142: 32214 | C142: 12 | D142: Materijal i sredstva za čišćenje i održavanje | E142: 7807.52 | F142: 12441.86 | G142: 22823.46 | H142: 20998.23 | I142: 20392.4 | J142: 2602.18 | K142: 15000 | L142: 0 | M142: 0 | N142: 15000 | O142: 15000 | P142: 15000
A143: R.1.1. | B143: 32234 | C143: 15 | D143: Motorni benzin i dizel gorivo | E143: 15402.93 | F143: 17565.87 | G143: 17765.86 | H143: 23313.08 | I143: 13953.08 | J143: 2273.12 | K143: 20000 | L143: 0 | M143: 0 | N143: 20000 | O143: 20000 | P143: 20000
A144: R.1.1. | B144: 32251 | C144: 17 | D144: Sitni inventar | E144: 3106.05 | F144: 6896.74 | G144: 3405 | H144: 17219.31 | I144: 4791.69 | J144: 3234.31 | K144: 5000 | L144: 0 | M144: 0 | N144: 5000 | O144: 5000 | P144: 5000
A145: R.1.1. | B145: 32242 | C145: 21-2 | D145: Usluge tekućeg održavanja uredske opreme | E145: 24925.93 | F145: 27754.9 | G145: 23125.15 | H145: 23487.54 | I145: 26626.35 | J145: 5627.19 | K145: 25000 | L145: 0 | M145: 0 | N145: 25000 | O145: 25000 | P145: 25000
A146: R.1.1. | B146: 32271 | C146: 97 | D146: Zaštita na radu - oprema | E146: 0 | F146: 0 | G146: 140.25 | H146: 0 | I146: 0 | J146: 0 | K146: 1000 | L146: 0 | M146: 0 | N146: 1000 | O146: 1000 | P146: 1000
B147: 323 | D147: Rashodi za usluge | E147: =+E148+E149+E150+E151+E152+E153+E154+E155+E156+E157+E158+E159+E160+E161+E162+E163+E164+E165+E166 -> 259084.64 | F147: 236084.56 | G147: 261591.41 | H147: 287236.42 | I147: 342041 | J147: =+J148+J149+J150+J151+J152+J153+J154+J155+J156+J157+J158+J159+J160+J161+J162+J163+J164+J165+J166 -> 68322.57 | K147: 306500 | L147: 0 | M147: 0 | N147: 306500 | O147: 302000 | P147: 302000
A148: R.1.1. | B148: 32361 | C148: 94-4 | D148: Zdravstvene usluge - pregledi | E148: 0 | F148: 0 | G148: 0 | H148: 0 | I148: 0 | J148: 0 | K148: 2000 | L148: 0 | M148: 0 | N148: 2000 | O148: 2000 | P148: 2000
A149: R.1.1. | B149: 32395 | C149: 21-3 | D149: Usluge čišćenja uredskih prostorija | E149: 19880 | F149: 0 | G149: 993.75 | H149: 0 | I149: 1752.18 | J149: 0 | K149: 5000 | L149: 0 | M149: 0 | N149: 5000 | O149: 5000 | P149: 5000
A150: R.1.1. | B150: 32331 | C150: 22 | D150: Usluge objavljivanja oglasa i natječaja | E150: 12530.05 | F150: 10323.02 | G150: 9450 | H150: 17880 | I150: 2052 | J150: 0 | K150: 20000 | L150: 0 | M150: 0 | N150: 20000 | O150: 20000 | P150: 20000
A151: R.1.1. | B151: 32332 | C151: 23 | D151: Tisak- Vinkovački list, Večernji list i Službeni vjesnik | E151: 9160 | F151: 9146 | G151: 9819 | H151: 11491.31 | I151: 9138 | J151: 156 | K151: 11000 | L151: 0 | M151: 0 | N151: 11000 | O151: 11000 | P151: 11000
A152: R.1.1. | B152: 32334 | C152: 24 | D152: Promidžbeni materijal, TV i Novosti | E152: 64524.23 | F152: 57182.3 | G152: 63549.3 | H152: 61216.4 | I152: 63519.65 | J152: 13724 | K152: 60000 | L152: 0 | M152: 0 | N152: 60000 | O152: 60000 | P152: 60000
A153: R.1.1. | B153: 32331 | C153: 24-1 | D153: Uređenje internet stranica | E153: 5000 | F153: 10000 | G153: 10000 | H153: 15000 | I153: 15000 | J153: 5000 | K153: 10000 | L153: 0 | M153: 0 | N153: 10000 | O153: 10000 | P153: 10000
A154: R.1.1. | B154: 32323 | C154: 21-1 | D154: Usluge tekućeg i investicijskog održavanja prijevoznih sred | E154: 13002.6 | F154: 6010.72 | G154: 13309.56 | H154: 10647.36 | I154: 15961.58 | J154: 11709.24 | K154: 12000 | L154: 0 | M154: 0 | N154: 12000 | O154: 12000 | P154: 12000
A155: R.1.1. | B155: 32389 | C155: 36 | D155: Arhiva - aplikacija (pristup) | E155: 8875 | F155: 6000 | G155: 1300 | H155: 1324 | I155: 1200 | J155: 100 | K155: 6000 | L155: 0 | M155: 0 | N155: 6000 | O155: 6000 | P155: 6000
A156: R.1.1. | B156: 32379 | C156: 37 | D156: Usluga naplata prihoda | E156: 0 | F156: 0 | G156: 43886.94 | H156: 30083.15 | I156: 26981.16 | J156: 7641.45 | K156: 25000 | L156: 0 | M156: 0 | N156: 25000 | O156: 25000 | P156: 25000
A157: R.1.1. | B157: 32394 | C157: 57 | D157: Usluge pri registraciji prijevoznih sredstava | E157: 1145.35 | F157: 974.88 | G157: 1258.16 | H157: 3175.86 | I157: 1059.21 | J157: 0 | K157: 3000 | L157: 0 | M157: 0 | N157: 3000 | O157: 3000 | P157: 3000
A158: R.1.1. | B158: 32311 | C158: 18 | D158: Usluge telefona, telefaksa | E158: 38582.52 | F158: 35803.88 | G158: 35838.69 | H158: 31976.1 | I158: 25685.35 | J158: 6174.68 | K158: 38000 | L158: 0 | M158: 0 | N158: 38000 | O158: 38000 | P158: 38000
A159: R.1.1. | B159: 32312 | C159: 19 | D159: Usluge interneta | E159: 0 | F159: 1263.61 | G159: 1250 | H159: 855 | I159: 855 | J159: 1792.5 | K159: 2000 | L159: 0 | M159: 0 | N159: 2000 | O159: 2000 | P159: 2000
A160: R.1.1. | B160: 32313 | C160: 20 | D160: Poštarina (pisma, tiskanice i sl.) | E160: 12726.96 | F160: 22295.73 | G160: 27656.51 | H160: 30839.48 | I160: 25950.69 | J160: 4061.95 | K160: 22000 | L160: 0 | M160: 0 | N160: 22000 | O160: 22000 | P160: 22000
A161: R.1.1. | B161: 32372 | C161: 26 | D161: Ugovori o djelu | E161: 0 | F161: 6666.67 | G161: 0 | H161: 12724.76 | I161: 5983.18 | J161: 0 | K161: 10000 | L161: 0 | M161: 0 | N161: 10000 | O161: 10000 | P161: 10000
A162: R.1.1. | B162: 32373 | C162: 27 | D162: Usluge odvjetnika i pravnog savjetovanja | E162: 42464.93 | F162: 29652.75 | G162: 4057.5 | H162: 21400 | I162: 105112.5 | J162: 9435.75 | K162: 35000 | L162: 0 | M162: 0 | N162: 35000 | O162: 35000 | P162: 35000
A163: R.1.1. | B163: 32381 | C163: 28 | D163: Usluge ažuriranja računalnih baza | E163: 29130.5 | F163: 26568 | G163: 26568 | H163: 26568 | I163: 26568 | J163: 6642 | K163: 30000 | L163: 0 | M163: 0 | N163: 30000 | O163: 26000 | P163: 26000
A164: R.1.1. | B164: 32391 | C164: 29 | D164: Usluge kopiranja i uvezivanja | E164: 2062.5 | F164: 2259.5 | G164: 2274 | H164: 1687.5 | I164: 1487.5 | J164: 0 | K164: 2500 | L164: 0 | M164: 0 | N164: 2500 | O164: 2000 | P164: 2000
A165: R.1.1. | B165: 32392 | C165: 30 | D165: Film i izrada fotografija | E165: 0 | F165: 0 | G165: 0 | H165: 0 | I165: 2425 | J165: 0 | K165: 1000 | L165: 0 | M165: 0 | N165: 1000 | O165: 1000 | P165: 1000
A166: R.1.1. | B166: 32382 | C166: 31 | D166: Program za evidencije grobne naknade i legalizacije objekat | E166: 0 | F166: 11937.5 | G166: 10380 | H166: 10367.5 | I166: 11310 | J166: 1885 | K166: 12000 | L166: 0 | M166: 0 | N166: 12000 | O166: 12000 | P166: 12000
B167: 324 | D167: Naknade troškova osobama izvan radnog odnosa | E167: =+E168+E169 -> 0 | F167: 0 | G167: 0 | H167: 23409.04 | I167: 25224.02 | J167: 4440.6 | K167: 30000 | L167: 0 | M167: 0 | N167: 30000 | O167: 30000 | P167: 30000
A168: R.1.1. | B168: 32412 | C168: 1-4 | D168: Plaće vježbenika - doprinos MIO | E168: 0 | F168: 0 | G168: 0 | H168: 23409.04 | I168: 17495.57 | J168: 3528.96 | K168: 20000 | L168: 0 | M168: 0 | N168: 20000 | O168: 20000 | P168: 20000
A169: R.1.1. | B169: 32412 | C169: 51-4 | D169: Doprinosi za obv. zdr..osig.zaštite zdravlja na radu -VJEŽB | E169: 0 | F169: 0 | G169: 0 | H169: 0 | I169: 7728.45 | J169: 911.64 | K169: 10000 | L169: 0 | M169: 0 | N169: 10000 | O169: 10000 | P169: 10000
B170: 329 | D170: Ostali nespomenuti rashodi poslovanja | E170: =+E171+E172+E173+E174+E175+E176+E177+E178+E179+E180+E181+E182 -> 1375740.5 | F170: =+F171+F172+F173+F174+F175+F176+F177+F178+F179+F180+F181+F182 -> 240346.41 | G170: 158460.04 | H170: 221466.01 | I170: 107229.43 | J170: 15709.22 | K170: 197000 | L170: 18000 | M170: 0 | N170: 215000 | O170: 197000 | P170: 197000
A171: R.1.1. | B171: 32941 | C171: 62 | D171: Tuzemne članarine | E171: 7230.91 | F171: 6193.7 | G171: 6826.4 | H171: 4987.4 | I171: 6687.68 | J171: 1856.13 | K171: 7000 | L171: 0 | M171: 0 | N171: 7000 | O171: 7000 | P171: 7000
A172: R.1.1. | B172: 32951 | C172: 63 | D172: Ovjere, suglasnosti i dr. | E172: 3136.25 | F172: 2872.3 | G172: 1586 | H172: 3594.5 | I172: 1301.26 | J172: 231.5 | K172: 5000 | L172: 0 | M172: 0 | N172: 5000 | O172: 5000 | P172: 5000
A173: R.1.1. | B173: 32921 | C173: 60 | D173: Premije osiguranja prijevoznih sredstava | E173: 13617.14 | F173: 13900.78 | G173: 9449.25 | H173: 6807.12 | I173: 1684.32 | J173: 2505.17 | K173: 10000 | L173: 0 | M173: 0 | N173: 10000 | O173: 10000 | P173: 10000
A174: R.1.1. | B174: 32923 | C174: 60-1 | D174: Premija osiguranja | E174: 7069.99 | F174: 9584.84 | G174: 1050 | H174: 2938.9 | I174: 5877.8 | J174: 0 | K174: 5000 | L174: 16000 | M174: 0 | N174: 21000 | O174: 5000 | P174: 5000 | Q174: Prema trećim osobama i radnici
A175: R.1.1. | B175: 32931 | C175: 61 | D175: Reprezentacija | E175: 14566.93 | F175: 31737.11 | G175: 33014.47 | H175: 35613.76 | I175: 21250.81 | J175: 11116.42 | K175: 22000 | L175: 0 | M175: 0 | N175: 22000 | O175: 22000 | P175: 22000
A176: R.1.1. | B176: 32931 | C176: 61-1 | D176: Priznanja za Dane Općine | E176: 3250 | F176: 4725 | G176: 2887.5 | H176: 3600 | I176: 5925 | J176: 0 | K176: 3000 | L176: 2000 | M176: 0 | N176: 5000 | O176: 3000 | P176: 3000 | Q176: 5 priznanja
A177: R.1.1. | B177: 32991 | C177: 61-2 | D177: Izdaci za cvjetne aranžmane i vijence | E177: 6520 | F177: 10646.63 | G177: 10623.75 | H177: 12088.25 | I177: 12175 | J177: 0 | K177: 12000 | L177: 0 | M177: 0 | N177: 12000 | O177: 12000 | P177: 12000
A178: R.1.1. | B178: 32931 | C178: 61-3 | D178: Troškovi proslave Dana Općine | E178: 20648.06 | F178: 19352.86 | G178: 19544.38 | H178: 22950.1 | I178: 22720.13 | J178: 0 | K178: 23000 | L178: 0 | M178: 0 | N178: 23000 | O178: 23000 | P178: 23000
A179: R.1.1. | B179: 32931 | C179: 61-4 | D179: Troškovi po službenim protokolima | E179: 15953.12 | F179: 16931.41 | G179: 20030.66 | H179: 20232.89 | I179: 20732.58 | J179: 0 | K179: 20000 | L179: 0 | M179: 0 | N179: 20000 | O179: 20000 | P179: 20000
A180: R.1.1. | B180: 32999 | C180: 999 | D180: Rezerviranja za izdatke iz proteklih godina | E180: 0 | F180: 0 | G180: 0 | H180: 0 | I180: 0 | J180: 0 | K180: 50000 | L180: 0 | M180: 0 | N180: 50000 | O180: 50000 | P180: 50000
A181: R.1.1. | B181: 32961 | C181: 207 | D181: Naknada štete po sudskim presudama | E181: 1283748.1 | F181: 124401.78 | G181: 53447.63 | H181: 108653.09 | I181: 8874.85 | J181: 0 | K181: 30000 | L181: 0 | M181: 0 | N181: 30000 | O181: 30000 | P181: 30000
A182: R.1.1. | B182: 32999 | C182: 398 | D182: Proračunska pričuva | E182: 0 | F182: 0 | G182: 0 | H182: 0 | I182: 0 | J182: 0 | K182: 10000 | L182: 0 | M182: 0 | N182: 10000 | O182: 10000 | P182: 10000
B183: 342 | D183: Kamate za primljene kredite i zajmove | E183: =+E184 -> 3174.5 | F183: 1238.13 | G183: 38.62 | H183: 0 | I183: 0 | J183: 0 | K183: 1000 | L183: 0 | M183: 0 | N183: 1000 | O183: 1000 | P183: 1000
A184: R.1.1. | B184: 34222 | C184: 35 | D184: Trošak kamata i PDV za financijski leasing | E184: 3174.5 | F184: 1238.13 | G184: 38.62 | H184: 0 | I184: 0 | J184: 0 | K184: 1000 | L184: 0 | M184: 0 | N184: 1000 | O184: 1000 | P184: 1000
B185: 343 | D185: Ostali financijski rashodi | E185: =+E186+E187 -> 13775.96 | F185: 14288.52 | G185: 16997.62 | H185: 15461.25 | I185: 9537.57 | J185: 2209.37 | K185: 21000 | L185: 0 | M185: 0 | N185: 21000 | O185: 21000 | P185: 24000
A186: R.1.1. | B186: 34311 | C186: 32 | D186: Usluge banaka | E186: 13775.96 | F186: 14288.52 | G186: 16782.04 | H186: 15261.03 | I186: 9537.57 | J186: 2209.35 | K186: 20000 | L186: 0 | M186: 0 | N186: 20000 | O186: 20000 | P186: 20000
A187: R.1.1. | B187: 34332 | C187: 33 | D187: Kamate na doprinose i poreze | E187: 0 | F187: 0 | G187: 215.58 | H187: 200.22 | I187: 0 | J187: 0.02 | K187: 1000 | L187: 0 | M187: 0 | N187: 1000 | O187: 1000 | P187: 4000
A188: R.1.1.1. | D188: Aktivnost: Informiranje zajednice | E188: =+E190+E191 -> 15912.5 | F188: 12400 | G188: 7743.75 | H188: 58724.07 | I188: 18053.27 | J188: 0 | K188: 45000 | L188: 0 | M188: 10000 | N188: 35000 | O188: 45000 | P188: 45000
B189: 323 | D189: Rashodi za usluge | E189: =+E190+E191 -> 15912.5 | F189: 12400 | G189: 7743.75 | H189: 58724.07 | I189: 18053.27 | J189: 0 | K189: 45000 | L189: 0 | M189: 10000 | N189: 35000 | O189: 45000 | P189: 45000
A190: R.1.1.1. | B190: 32391 | C190: 11-1 | D190: Usluge tiskanja lista -"Klasa" | E190: 15712.5 | F190: 7400 | G190: 7743.75 | H190: 11812.5 | I190: 11200 | J190: 0 | K190: 25000 | L190: 0 | M190: 10000 | N190: 15000 | O190: 25000 | P190: 25000
A191: R.1.1.1. | B191: 32391 | C191: 11-2 | D191: Usluge tiskanja knjige | E191: 200 | F191: 5000 | G191: 0 | H191: 46911.57 | I191: 6853.27 | J191: 0 | K191: 20000 | L191: 0 | M191: 0 | N191: 20000 | O191: 20000 | P191: 20000
A192: R.1.2. | D192: Program: Unapređenje aktivnosti | E192: =+E195+E197+E200+E202+E203+E204+E205+E208+E209+E210+E211+E212+E213+E214 -> 51464.63 | F192: 55885.22 | G192: 33044.61 | H192: 80493.42 | I192: 76501.59 | J192: 25102.27 | K192: 182000 | L192: 5000 | M192: 45000 | N192: 142000 | O192: 125000 | P192: 100000
A193: R.1.2.1. | D193: Aktivnost: Usavršavanje i edukacija uposlenika | E193: =+E195+E197 -> 6940 | F193: 7367.5 | G193: 3045 | H193: 13631.57 | I193: 16308.77 | J193: 4380 | K193: 18000 | L193: 5000 | M193: 0 | N193: 23000 | O193: 18000 | P193: 18000
B194: 321 | D194: Naknade troškova zaposlenima | E194: =+E195 -> 0 | F194: 0 | G194: 0 | H194: 0 | I194: 9411.25 | J194: 4380 | K194: 10000 | L194: 5000 | M194: 0 | N194: 15000 | O194: 10000 | P194: 10000
A195: R.1.2.1. | B195: 32131 | C195: 38 | D195: Stručno usavršavanje - seminari | E195: 0 | F195: 0 | G195: 0 | H195: 0 | I195: 9411.25 | J195: 4380 | K195: 10000 | L195: 5000 | M195: 0 | N195: 15000 | O195: 10000 | P195: 10000 | Q195: Zbog poreza na nekretnine od 01.01.2018.
B196: 322 | D196: Rashodi za materijal i energiju | E196: =+E197 -> 6940 | F196: 7367.5 | G196: 3045 | H196: 13631.57 | I196: 6897.52 | J196: 0 | K196: 8000 | L196: 0 | M196: 0 | N196: 8000 | O196: 8000 | P196: 8000
A197: R.1.2.1. | B197: 32212 | C197: 11 | D197: Literatura (publikacije, časopisi, glasila, knjige i ostalo | E197: 6940 | F197: 7367.5 | G197: 3045 | H197: 13631.57 | I197: 6897.52 | J197: 0 | K197: 8000 | L197: 0 | M197: 0 | N197: 8000 | O197: 8000 | P197: 8000
A198: R.1.2.2. | D198: Aktivnost: Nabava objekata i opreme | E198: =+E200+E202+E203+E204+E205 -> 29758.13 | F198: 33038.09 | G198: 19108.03 | H198: 49220.14 | I198: 41397.22 | J198: 7610.91 | K198: 90000 | L198: 0 | M198: 20000 | N198: 70000 | O198: 60000 | P198: 44000
B199: 323 | D199: Rashodi za usluge | E199: =+E200 -> 0 | F199: 0 | G199: 0 | H199: 0 | I199: 0 | J199: 0 | K199: 30000 | L199: 0 | M199: 20000 | N199: 10000 | O199: 0 | P199: 0
A200: R.1.2.2. | B200: 32379 | C200: 95-2 | D200: Izrada plana zaštite i spašavanja | E200: 0 | F200: 0 | G200: 0 | H200: 0 | I200: 0 | J200: 0 | K200: 30000 | L200: 0 | M200: 20000 | N200: 10000 | O200: 0 | P200: 0 | Q200: Ne radi se ove godine, valjan je
B201: 422 | D201: Postrojenja i oprema | E201: =+E202+E203+E204+E205 -> 29758.13 | F201: 33038.09 | G201: 19108.03 | H201: 49220.14 | I201: 41397.22 | J201: 7610.91 | K201: 60000 | L201: 0 | M201: 0 | N201: 60000 | O201: 60000 | P201: 44000
A202: R.1.2.2. | B202: 42233 | C202: 96 | D202: Oprema za protupožarnu zaštitu | E202: 1887.5 | F202: 1687.5 | G202: 4331.13 | H202: 3544.19 | I202: 0 | J202: 0 | K202: 5000 | L202: 0 | M202: 0 | N202: 5000 | O202: 5000 | P202: 5000
... 290 more rows
